Workbook

Sheet اجمالي
B2: # | C2: رقم العقد | D2: اسم العميل | E2: قيمة العقد | F2: عدد الاقساط المسددة | G2: قيمة الاقساط المسددة | H2: عدد الاقساط الغير مسددة | I2: قيمة الاقساط الغير مسددة | K2: اضغط الزر اسفله و ستشاهد النتيجة بنفسك
B3: 1 | C3: 2 | D3: محمد ايهاب
B4: 2 | C4: 3 | D4: محمد ايمن
B5: 3 | C5: 5 | D5: احمد ناصر
B6: 4 | C6: 6 | D6: محمد محسن
B7: الإجمالي | E7: =SUM(E3:E6) -> 0 | F7: =SUM(F3:F6) -> 0 | G7: 0 | H7: 0 | I7: 0

Sheet محمد ايهاب
D2: =SMALL(IF($B$14:$B$100="عدد الأقساط المسددة :",ROW($B$14:$B$100)),ROW(A1)) ->  | J2: =OFFSET($C$14,SMALL(IF($B$14:$B$100="عدد الأقساط المسددة :",ROW($B$14:$B$100)),ROW(A1))-14,0) -> 
B5: كشف حساب عميل
B7: إسم العميل : | C7: محمد ايهاب | I7: قيمة العقد | J7: 50400
B8: رقم العميل : | C8: 50002 | I8: قيمة القسط : | J8: 2100
B9: رقم العقد : | C9: 2 | I9: عدد الأقساط : | J9: =J7/J8 -> 24
B10: تاريخ العقد : | C10: 2019-08-21
B13: رقم القسط | C13: تاريخ الإستحقاق | D13: تاريح السداد | E13: عدد الأيام المتأخرة | F13: المبلغ المدفوع | G13: المبلغ المتبقي | H13: حالة السداد | I13: حالة القسط | J13: البنك
B14: 1 | C14: 2019-09-27 | D14: 2019-09-27 | E14: =IF(D14<=C14,0,D14-C14) -> 0 | F14: 2100 | G14: =$J$7-F14 -> 48300 | H14: منتظم | I14: مدفوع
B15: 2 | C15: 2019-10-27 | D15: 2019-10-27 | E15: 0 | F15: 2100 | G15: =G14-F15 -> 46200 | H15: منتظم | I15: مدفوع
B16: 3 | C16: 2019-11-27 | D16: 2019-11-27 | E16: 0 | F16: 2100 | G16: =G15-F16 -> 44100 | H16: منتظم | I16: مدفوع
B17: 4 | C17: 2019-12-27 | D17: 2019-12-27 | E17: 0 | F17: 2100 | G17: 42000 | H17: منتظم | I17: مدفوع
B18: 5 | C18: 2020-01-27 | D18: 2020-01-27 | E18: 0 | F18: 2100 | G18: 39900 | H18: منتظم | I18: مدفوع
B19: 6 | C19: 2020-02-27 | D19: 2020-02-27 | E19: 0 | F19: 2100 | G19: 37800 | H19: منتظم | I19: مدفوع
B20: 7 | C20: 2020-03-27 | D20: 2020-03-27 | E20: 0 | F20: 2100 | G20: 35700 | H20: منتظم | I20: مدفوع
B21: 8 | C21: 2020-04-27 | D21: 2020-04-27 | E21: 0 | F21: 2100 | G21: 33600 | H21: منتظم | I21: مدفوع
B22: 9 | C22: 2020-05-27 | D22: 2020-05-27 | E22: 0 | F22: 2100 | G22: 31500 | H22: منتظم | I22: مدفوع
B23: 10 | C23: 2020-06-27 | D23: 2020-06-27 | E23: 0 | F23: 2100 | G23: 29400 | H23: منتظم | I23: مدفوع
B24: 11 | C24: 2020-07-27 | D24: 2020-07-27 | E24: 0 | F24: 2100 | G24: 27300 | H24: منتظم | I24: مدفوع
B25: 12 | C25: 2020-08-27 | D25: 2020-08-27 | E25: 0 | F25: 2100 | G25: 25200 | H25: منتظم | I25: مدفوع
B26: 13 | C26: 2020-09-27 | D26: 2020-08-27 | E26: 0 | F26: 2100 | G26: 23100 | H26: منتظم | I26: مدفوع
B27: 14 | C27: 2020-10-27 | D27: 2020-08-27 | E27: 0 | F27: 600 | G27: 22500 | H27: غير مسدد | I27: مدفوع جزئي
B28: 15 | C28: 2020-11-27 | E28: 0 | G28: 22500 | H28: غير مسدد | I28: =IF(C28<=TODAY(),"مستحق","") -> مستحق
B29: 16 | C29: 2020-12-27 | E29: 0 | G29: 22500 | H29: غير مسدد | I29: مستحق
B30: 17 | C30: 2021-01-27 | E30: 0 | G30: 22500 | H30: غير مسدد | I30: مستحق
B31: 18 | C31: 2021-02-27 | E31: 0 | G31: 22500 | H31: غير مسدد | I31: مستحق
B32: 19 | C32: 2021-03-27 | E32: 0 | G32: 22500 | H32: غير مسدد | I32: مستحق
B33: 20 | C33: 2021-04-27 | E33: 0 | G33: 22500 | H33: غير مسدد | I33: مستحق
B34: 21 | C34: 2021-05-27 | E34: 0 | G34: 22500 | H34: غير مسدد | I34: مستحق
B35: 22 | C35: 2021-06-27 | E35: 0 | G35: 22500 | H35: غير مسدد | I35: مستحق
B36: 23 | C36: 2021-07-27 | E36: 0 | G36: 22500 | H36: غير مسدد | I36: مستحق
B37: 24 | C37: 2021-08-27 | E37: 0 | G37: 22500 | H37: غير مسدد | I37: مستحق
B38: عدد الأقساط المسددة : | C38: =COUNTIF(F14:F37,2100) -> 13 | H38: عدد الأقساط الغير مسددة : | J38: =COUNTIF(H14:H37,"غير مسدد") -> 11
B39: قيمة الأقساط المسددة : | C39: =SUM(F14:F37) -> 27900 | H39: قيمة الأقساط الغير مسددة : | J39: =J8*J38 -> 23100
E41: =COUNTA(B14:B38) -> 25

Sheet محمد ايمن
B5: كشف حساب عميل
B7: إسم العميل : | C7: محمد ايمن | I7: قيمة لعقد | J7: 12000
B8: رقم العميل : | C8: 50003 | I8: قيمة القسط : | J8: 500
B9: رقم العقد : | C9: 3 | I9: عدد الأقساط :
B10: تاريخ العقد : | C10: 2021-04-22
B13: رقم القسط | C13: تاريخ الإستحقاق | D13: تاريح السداد | E13: عدد الأيام المتأخرة | F13: المبلغ المدفوع | G13: المبلغ المتبقي | H13: حالة السداد | I13: حالة القسط | J13: البنك
B14: 1 | C14: 2021-05-27 | D14: 2021-06-01 | E14: =IF(D14<=C14,0,D14-C14) -> 5 | F14: 500 | G14: =$J$7-F14 -> 11500 | H14: متاخر | I14: مدفوع | J14: الراجحي
B15: 2 | C15: 2021-06-27 | D15: 2021-07-01 | E15: =IF(D15<=C15,0,D15-C15) -> 4 | F15: 500 | G15: =G14-F15 -> 11000 | H15: متاخر | I15: مدفوع | J15: الراجحي
B16: 3 | C16: 2021-07-27 | D16: 2021-08-01 | E16: =IF(D16<=C16,0,D16-C16) -> 5 | F16: 500 | G16: =G15-F16 -> 10500 | H16: متاخر | I16: مدفوع | J16: الراجحي
B17: 4 | C17: 2021-08-27 | D17: 2021-09-01 | E17: =IF(D17<=C17,0,D17-C17) -> 5 | F17: 500 | G17: 10000 | H17: متاخر | I17: مدفوع | J17: الراجحي
B18: 5 | C18: 2021-09-27 | D18: 2021-09-30 | E18: =IF(D18<=C18,0,D18-C18) -> 3 | F18: 500 | G18: 9500 | H18: متاخر | I18: مدفوع | J18: الراجحي
B19: 6 | C19: 2021-10-27 | D19: 2021-11-01 | E19: =IF(D19<=C19,0,D19-C19) -> 5 | F19: 500 | G19: 9000 | H19: متاخر | I19: مدفوع | J19: الراجحي
B20: 7 | C20: 2021-11-27 | E20: 0 | G20: 9000 | I20: =IF(C20<=TODAY(),"مستحق","") -> مستحق
B21: 8 | C21: 2021-12-27 | E21: 0 | G21: 9000 | I21: مستحق
B22: 9 | C22: 2022-01-27 | E22: 0 | G22: 9000
B23: 10 | C23: 2022-02-27 | E23: 0 | G23: 9000
B24: 11 | C24: 2022-03-27 | E24: 0
B25: 12 | C25: 2022-04-27 | E25: 0
B26: 13 | C26: 2022-05-27 | E26: 0
B27: 14 | C27: 2022-06-27 | E27: 0
B28: 15 | C28: 2022-07-27 | E28: 0
B29: 16 | C29: 2022-08-27 | E29: 0
B30: 17 | C30: 2022-09-27 | E30: 0
B31: 18 | C31: 2022-10-27 | E31: 0
B32: 19 | C32: 2022-11-27 | E32: 0
B33: 20 | C33: 2022-12-27 | E33: 0
B34: 21 | C34: 2023-01-27 | E34: 0
B35: 22 | C35: 2023-02-27 | E35: 0
B36: 23 | C36: 2023-03-27 | E36: 0
B37: 24 | C37: 2023-04-27 | E37: 0
B38: عدد الأقساط المسددة : | C38: =COUNT(F14:F37) -> 6 | H38: عدد الأقساط الغير مسددة : | J38: =COUNTIF(H14:H37,"غير مسدد") -> 0
B39: قيمة الأقساط المسددة : | C39: =SUM(F14:F37) -> 3000 | H39: قيمة الأقساط الغير مسددة : | J39: =J8*J38 -> 0

Sheet احمد ناصر
B5: كشف حساب عميل
B7: إسم العميل : | C7: احمد ناصر | I7: قيمة العقد | J7: 6300
B8: رقم العميل : | C8: 50005 | I8: قيمة القسط : | J8: 1050
B9: رقم العقد : | C9: 5 | I9: عدد الأقساط : | J9: =J7/J8 -> 6
B10: تاريخ العقد : | C10: 2019-10-21
B13: رقم القسط | C13: تاريخ الإستحقاق | D13: تاريح السداد | E13: عدد الأيام المتأخرة | F13: المبلغ المدفوع | G13: المبلغ المتبقي | H13: حالة السداد | I13: حالة القسط | J13: البنك
B14: 1 | C14: 2019-11-27 | D14: 2019-12-01 | E14: =IF(D14<=C14,0,D14-C14) -> 4 | F14: 1050 | G14: =$J$7-F14 -> 5250 | H14: متاخر | I14: مدفوع | J14: الراجحي
B15: 2 | C15: 2019-12-27 | D15: 2020-01-18 | E15: 22 | F15: 1050 | G15: =G14-F15 -> 4200 | H15: متاخر | I15: مدفوع | J15: الراجحي
B16: 3 | C16: 2020-01-27 | D16: 2020-02-23 | E16: 27 | F16: 1050 | G16: =G15-F16 -> 3150 | H16: متاخر | I16: مدفوع | J16: الراجحي
B17: 4 | C17: 2020-02-27 | D17: 2020-06-05 | E17: 99 | F17: 1050 | G17: 2100 | H17: متاخر | I17: مدفوع | J17: الراجحي
B18: 5 | C18: 2020-03-27 | D18: 2020-10-04 | E18: 191 | F18: 950 | G18: 1150 | H18: غير مسدد | I18: مدفوع جزئي | J18: الراجحي
B19: 6 | C19: 2020-04-27 | E19: 0 | G19: 1150 | H19: غير مسدد | I19: =IF(C19<=TODAY(),"مستحق","") -> مستحق
B20: عدد الأقساط المسددة : | C20: =COUNTIF(F14:F19,1050) -> 4 | H20: عدد الأقساط الغير مسددة : | J20: =COUNTIF(H14:H19,"غير مسدد") -> 2
B21: قيمة الأقساط المسددة : | C21: =SUM(F14:F19) -> 5150 | H21: قيمة الأقساط الغير مسددة : | J21: =J8*J20 -> 2100
F25: =OFFSET($C$14,SMALL(IF($B$14:$B$100="عدد الأقساط المسددة :",ROW($B$14:$B$100)),ROW(A1))-14,0) -> 4

Sheet محمد محسن
I2: =OFFSET($C$14,SMALL(IF($B$14:$B$100="عدد الأقساط المسددة :",ROW($B$14:$B$100)),ROW(A1))-14,0) -> 18
B5: كشف حساب عميل
B7: إسم العميل : | C7: محمد محسن | I7: قيمة العقد | J7: 56984
B8: رقم العميل : | C8: 50006 | I8: قيمة القسط : | J8: 2041
B9: رقم العقد : | C9: 6 | I9: عدد الأقساط : | J9: =(J7-J10)/J8 -> 24
B10: تاريخ العقد : | C10: 2019-11-12 | I10: دفعة مقدمة : | J10: 8000
B13: رقم القسط | C13: تاريخ الإستحقاق | D13: تاريح السداد | E13: عدد الأيام المتأخرة | F13: المبلغ المدفوع | G13: المبلغ المتبقي | H13: حالة السداد | I13: حالة القسط | J13: البنك
B14: 1 | C14: 2019-12-27 | D14: 2019-12-27 | E14: =IF(D14<=C14,0,D14-C14) -> 0 | F14: 2041 | G14: =$J$7-8000-F14 -> 46943 | H14: منتظم | I14: مدفوع | J14: الراجحي
B15: 2 | C15: 2020-01-27 | D15: 2020-01-28 | E15: 1 | F15: =7+2034 -> 2041 | G15: =G14-F15 -> 44902 | H15: متاخر | I15: مدفوع | J15: الراجحي
B16: 3 | C16: 2020-02-27 | D16: 2020-03-10 | E16: 12 | F16: =14+2027 -> 2041 | G16: =G15-F16 -> 42861 | H16: متاخر | I16: مدفوع | J16: الراجحي
B17: 4 | C17: 2020-03-27 | D17: 2020-03-26 | E17: 0 | F17: =28+2013 -> 2041 | G17: 40820 | H17: مبكر | I17: مدفوع | J17: الراجحي
B18: 5 | C18: 2020-04-27 | D18: 2020-04-26 | E18: 0 | F18: =35+1600+406 -> 2041 | G18: 38779 | H18: مبكر | I18: مدفوع | J18: الراجحي
B19: 6 | C19: 2020-05-27 | D19: 2020-05-19 | E19: 0 | F19: =1642+399 -> 2041 | G19: 36738 | H19: مبكر | I19: مدفوع | J19: الراجحي
B20: 7 | C20: 2020-06-27 | D20: 2020-07-14 | E20: 17 | F20: =1649+392 -> 2041 | G20: 34697 | H20: متاخر | I20: مدفوع | J20: الراجحي
B21: 8 | C21: 2020-07-27 | D21: 2020-09-28 | E21: 63 | F21: =1656+385 -> 2041 | G21: 32656 | H21: متاخر | I21: مدفوع | J21: الراجحي
B22: 9 | C22: 2020-08-27 | D22: 2020-11-04 | E22: 69 | F22: =1663+378 -> 2041 | G22: 30615 | H22: متاخر | I22: مدفوع | J22: الراجحي
B23: 10 | C23: 2020-09-27 | D23: 2020-12-24 | E23: 88 | F23: =1670+371 -> 2041 | G23: 28574 | H23: متاخر | I23: مدفوع | J23: الراجحي
B24: 11 | C24: 2020-10-27 | D24: 2021-02-25 | E24: 121 | F24: =1677+364 -> 2041 | G24: 26533 | H24: متاخر | I24: مدفوع | J24: الراجحي
B25: 12 | C25: 2020-11-27 | D25: 2021-04-03 | E25: 127 | F25: 2041 | G25: 24492 | H25: متاخر | I25: مدفوع | J25: الراجحي
B26: 13 | C26: 2020-12-27 | D26: 2021-06-14 | E26: 169 | F26: =95+1946 -> 2041 | G26: 22451 | H26: متاخر | I26: مدفوع | J26: الراجحي
B27: 14 | C27: 2021-01-27 | D27: 2021-11-06 | E27: 283 | F27: =102+1342+597 -> 2041 | G27: 20410 | H27: متاخر | I27: مدفوع | J27: الراجحي
B28: 15 | C28: 2021-02-27 | D28: 2021-11-06 | E28: 252 | F28: 2041 | G28: 18369 | H28: متاخر | I28: مدفوع | J28: الراجحي
B29: 16 | C29: 2021-03-27 | D29: 2021-11-06 | E29: 224 | F29: 2041 | G29: 16328 | H29: متاخر | I29: مدفوع | J29: الراجحي
B30: 17 | C30: 2021-04-27 | D30: 2021-11-06 | E30: 193 | F30: 2041 | G30: 14287 | H30: متاخر | I30: مدفوع | J30: الراجحي
B31: 18 | C31: 2021-05-27 | D31: 2021-11-06 | E31: 163 | F31: 2041 | G31: 12246 | H31: متاخر | I31: مدفوع | J31: الراجحي
B32: 19 | C32: 2021-06-27 | D32: 2021-11-06 | E32: 132 | F32: 1939 | G32: 10307 | H32: غير مسدد | I32: مدفوع جزئي | J32: الراجحي
B33: 20 | C33: 2021-07-27 | E33: 0 | G33: 10307 | H33: غير مسدد | I33: =IF(C33<=TODAY(),"مستحق","") -> مستحق
B34: 21 | C34: 2021-08-27 | E34: 0 | G34: 10307 | H34: غير مسدد | I34: مستحق
B35: 22 | C35: 2021-09-27 | E35: 0 | G35: 10307 | H35: غير مسدد | I35: مستحق
B36: 23 | C36: 2021-10-27 | E36: 0 | G36: 10307 | H36: غير مسدد | I36: مستحق
B37: 24 | C37: 2021-11-27 | E37: 0 | G37: 10307 | I37: مستحق
B38: عدد الأقساط المسددة : | C38: =COUNTIF(F14:F37,2041) -> 18 | H38: عدد الأقساط الغير مسددة : | J38: =COUNTIF(H14:H37,"غير مسدد") -> 5
B39: قيمة الأقساط المسددة : | C39: =SUM(F14:F37) -> 38677 | H39: قيمة الأقساط الغير مسددة : | J39: =J8*J38 -> 10205

Sheet Sheet2
A1: مدفوع | B1: مبكر
A2: غير مدفوع | B2: متاخر
A3: مدفوع جزئي | B3: غير مسدد
B4: منتظم
